bitfinex/quotes_SOLUSD_20241118
["timestamp","ask_amount","ask_price","bid_price","bid_amount"]
[1731935985215,32.47386418,240.19,240.11,32.47386418]
[1731935985720,32.47386418,240.21,240.13,32.47386418]
[1731935985899,32.47386418,240.23,240.15,32.47386418]
[1731935986100,32.47386418,240.25,240.17,32.47386418]
[1731935986810,4.1625,240.24,240.17,32.47386418]
[1731935987128,4.1625,240.24,240.18,0.25098]
[1731935987796,4.1622,240.26,240.2,0.12549]
[1731935988000,4.1622,240.26,240.2,0.25098]
[1731935988396,4.1622,240.26,240.2,0.12549]
[1731935988830,32.47386418,240.23,240.15,32.47386418]
[1731935989020,32.47386418,240.21,240.13,32.47386418]
[1731935989203,4.1622,240.26,240.09,32.47386418]
[1731935989204,32.47386418,240.19,240.09,32.47386418]
[1731935989405,32.47386418,240.17,240.09,32.47386418]
[1731935989806,32.47386418,240.17,240.07,32.47386418]
[1731935990117,32.47386418,240.17,240.05,32.47386418]
[1731935990834,36.63756418,240.17,240.05,32.47386418]
[1731935991025,36.63756418,240.17,240.03,32.5675388]
[1731935991329,60.6081228,240.17,240.16,7.462e-05]
[1731935991525,36.63756418,240.17,240.16,7.462e-05]
[1731935992324,106.63756418,240.17,240.16,7.462e-05]
[1731935992714,130.5081228,240.17,240.16,7.462e-05]
[1731935993104,106.63756418,240.17,240.16,7.462e-05]
[1731935993921,130.6081228,240.17,240.16,7.462e-05]
[1731935994129,163.18198698,240.17,240.16,7.462e-05]
[1731935994316,130.7081228,240.17,240.16,7.462e-05]
[1731935995434,106.73756418,240.17,240.16,7.462e-05]
[1731935995611,106.83756418,240.17,240.16,7.462e-05]
[1731935996932,70.0,240.14,240.02,0.41663195]
[1731935997144,32.47386418,240.03,240.02,0.41663195]
[1731935999040,32.47386418,240.05,240.02,0.41663195]
[1731935999433,32.47386418,240.03,240.02,0.41663195]
[1731936000213,20.01184661,240.05,240.02,0.41663195]
[1731936000436,24.17724661,240.07,240.02,0.41663195]
[1731936000636,4.1654,240.07,240.02,0.41663195]
[1731936001215,4.1654,240.07,240.03,0.25098]
[1731936001625,24.17724661,240.07,240.03,0.25098]
[1731936001847,24.17724661,240.07,240.03,0.12549]
[1731936002316,20.01184661,240.05,240.03,0.12549]
[1731936002516,20.01184661,240.05,240.02,0.41663195]
[1731936002713,20.01184661,240.03,240.02,0.41663195]
[1731936002947,24.17794661,240.03,240.02,0.41663195]
[1731936003148,94.27162123,240.03,240.02,3.195e-05]
[1731936003330,94.27162123,240.03,239.89,20.01184661]
[1731936003331,70.0,240.0,239.86,12.9646]
[1731936003523,20.01184661,239.93,239.86,12.9646]
[1731936003722,20.01184661,239.95,239.87,20.01184661]
[1731936004141,20.01184661,239.91,239.83,20.01184661]
[1731936004440,32.56943397,239.87,239.79,45.27253397]
[1731936005021,32.56943397,239.85,239.79,12.7031]
[1731936005226,32.56943397,239.85,239.77,32.56943397]
[1731936005536,32.56943397,239.83,239.75,32.56943397]
[1731936005923,32.56943397,239.85,239.77,32.56943397]
[1731936006122,32.56943397,239.85,239.61,4.1734]
[1731936006123,32.56943397,239.82,239.61,4.1734]
[1731936006328,70.0,239.83,239.61,4.1734]
[1731936006329,32.56943397,239.69,239.61,32.56943397]
[1731936006531,32.56943397,239.76,239.62,0.35775745]
[1731936006532,32.56943397,239.67,239.62,0.35775745]
[1731936006736,0.1,239.75,239.57,32.56943397]
[1731936006737,32.56943397,239.65,239.57,32.56943397]
[1731936006938,36.74223397,239.65,239.57,32.56943397]
[1731936007745,36.74223397,239.65,239.54,32.56943397]
[1731936007746,32.56943397,239.63,239.54,32.56943397]
[1731936007947,32.56943397,239.61,239.52,32.56943397]
[1731936008129,32.56943397,239.63,239.56,32.56943397]
[1731936008446,36.74223397,239.65,239.56,32.56943397]
[1731936008761,32.56943397,239.63,239.54,32.56943397]
[1731936008937,32.56943397,239.61,239.54,32.56943397]
[1731936009141,32.56943397,239.61,239.52,32.56943397]
[1731936009523,32.56943397,239.61,239.5,4.1752]
[1731936009524,32.56943397,239.58,239.49,32.56943397]
[1731936009728,32.56943397,239.56,239.47,32.56943397]
[1731936010334,32.56943397,239.58,239.49,32.56943397]
[1731936010552,32.56943397,239.61,239.53,32.56943397]
[1731936010733,70.0,239.64,239.51,32.56943397]
[1731936010931,32.56943397,239.62,239.55,32.56943397]
[1731936012058,32.56943397,239.58,239.51,32.56943397]
[1731936012231,32.56943397,239.52,239.45,32.56943397]
[1731936012431,32.56943397,239.48,239.41,32.56943397]
[1731936012631,32.56943397,239.5,239.41,36.74623397]
[1731936012831,32.56943397,239.48,239.41,36.74623397]
[1731936013257,32.56943397,239.5,239.43,32.56943397]
[1731936013451,32.56943397,239.52,239.43,32.56943397]
[1731936013651,32.56943397,239.52,239.45,32.56943397]
[1731936014062,32.56943397,239.5,239.43,32.56943397]
[1731936014252,32.56943397,239.5,239.44,0.12549]
[1731936014632,32.56943397,239.5,239.42,0.25098]
[1731936015255,32.56943397,239.54,239.48,0.25098]
[1731936015572,32.56943397,239.6,239.52,24.027864]
[1731936015856,32.56943397,239.6,239.54,23.902374]
[1731936016158,32.56943397,239.56,239.48,24.027864]
[1731936016335,32.56943397,239.54,239.48,24.027864]
[1731936016532,32.56943397,239.56,239.48,24.027864]
[1731936016738,32.56943397,239.56,239.48,28.203464]
[1731936017425,32.56943397,239.56,239.49,32.66310859]
[1731936017630,32.56943397,239.58,239.5,24.027864]
[1731936018055,32.56943397,239.58,239.52,24.027864]
[1731936018360,32.56943397,239.62,239.56,23.902374]
[1731936018651,30.0,239.57,239.56,23.902374]
[1731936018857,30.0,239.57,239.56,0.12549]
[1731936019031,30.0,239.57,239.56,23.902374]
[1731936019231,32.56943397,239.58,239.49,32.56943397]
[1731936019444,32.56943397,239.54,239.47,32.56943397]
[1731936019650,32.56943397,239.52,239.44,32.56943397]
[1731936019859,32.56943397,239.5,239.42,32.56943397]
[1731936020054,32.56943397,239.48,239.41,4.1769]
[1731936020635,32.56943397,239.5,239.44,32.56943397]
[1731936020835,32.56943397,239.56,239.48,32.56943397]
[1731936021445,70.0,239.6,239.42,0.09367462]
[1731936021446,32.56943397,239.6,239.52,32.56943397]
[1731936021844,32.56943397,239.6,239.53,23.902374]
[1731936022155,32.56943397,239.58,239.52,0.25098]
[1731936022541,32.56943397,239.6,239.53,23.776884]
[1731936022742,32.56943397,239.6,239.54,0.12549]
[1731936023043,32.56943397,239.58,239.5,56.34631797]
[1731936023247,32.56943397,239.54,239.47,0.12549]
[1731936023449,32.56943397,239.52,239.44,32.56943397]
[1731936023664,32.56943397,239.5,239.42,32.56943397]
[1731936025559,32.56943397,239.5,239.44,10.4409]
[1731936025940,30.0,239.49,239.45,23.902374]
[1731936027048,30.0,239.49,239.46,0.12549]
[1731936027464,30.0,239.49,239.45,23.902374]
[1731936027666,24.27813054,239.52,239.45,23.902374]
[1731936027967,20.10303054,239.52,239.45,28.078474]
[1731936028471,20.10303054,239.56,239.49,23.902374]
[1731936028670,20.10303054,239.62,239.54,20.10303054]
[1731936028877,43.1527,239.71,239.49,23.776884]
[1731936028878,20.10303054,239.68,239.6,20.10303054]
[1731936029162,20.10303054,239.7,239.64,0.12549]
[1731936029369,36.80069154,239.78,239.69,23.902374]
[1731936029544,24.27353054,239.78,239.69,44.00540454]
[1731936029740,20.10303054,239.76,239.7,0.12549]
[1731936029954,20.10303054,239.78,239.71,20.10303054]
[1731936030157,20.10303054,239.78,239.72,23.902374]
[1731936030358,32.58855885,239.79,239.72,23.902374]
[1731936030558,32.58855885,239.81,239.74,23.902374]
[1731936030865,32.58855885,239.85,239.78,24.027864]
[1731936031056,32.58855885,239.84,239.78,24.027864]
[1731936031369,32.58855885,239.86,239.79,32.68223347]
[1731936031576,32.58855885,239.88,239.8,24.027864]
[1731936031770,32.58855885,239.92,239.85,32.68223347]
[1731936032072,32.58855885,239.96,239.9,24.027864]
[1731936032372,4.26007462,240.02,239.9,24.027864]
[1731936032373,32.58855885,239.98,239.92,0.12549]
[1731936032746,32.58855885,240.0,239.93,32.68223347]
[1731936033065,32.68223347,240.02,239.94,24.027864]
[1731936033253,32.58855885,240.0,239.94,24.027864]
[1731936033577,32.58855885,239.96,239.86,4.1689]
[1731936033795,32.58855885,239.87,239.8,20.0]
[1731936033951,32.58855885,239.81,239.73,4.1713]
[1731936034152,32.58855885,239.77,239.73,4.1713]
[1731936034350,32.58855885,239.75,239.71,4.1717]
[1731936035363,70.0,239.87,239.69,32.58855885]
[1731936035364,32.58855885,239.77,239.69,32.58855885]
[1731936035552,32.58855885,239.77,239.71,0.09367462]
[1731936035956,32.58855885,239.75,239.68,4.1722]
[1731936036158,32.58855885,239.73,239.68,4.1722]
[1731936036567,32.58855885,239.73,239.69,0.09367462]
[1731936037075,32.58855885,239.75,239.69,0.09367462]
[1731936037277,32.58855885,239.75,239.65,32.58855885]
[1731936037479,32.58855885,239.75,239.66,0.12549]
[1731936037785,31.08855885,239.75,239.68,20.21916462]
[1731936038476,31.08855885,239.75,239.7,0.21916462]
[1731936038773,32.58855885,239.75,239.73,0.12549]
[1731936039481,32.58855885,239.77,239.73,0.21916462]
[1731936039655,32.58855885,239.75,239.73,0.12549]
[1731936039856,32.58855885,239.75,239.72,23.776884]
[1731936040267,32.58855885,239.73,239.64,32.58855885]
[1731936040489,32.58855885,239.7,239.61,63.30215885]
[1731936040680,32.58855885,239.68,239.62,4.1732]
[1731936040859,70.0,239.72,239.57,32.58855885]
[1731936041153,32.58855885,239.66,239.58,32.58855885]
[1731936041358,32.58855885,239.66,239.59,0.09367462]
[1731936041576,32.58855885,239.68,239.58,32.58855885]
[1731936042080,32.58855885,239.68,239.63,0.09367462]
[1731936042584,32.58855885,239.66,239.63,0.09367462]
[1731936043594,32.58855885,239.68,239.63,0.09367462]
[1731936043762,32.58855885,239.7,239.64,0.25098]
[1731936043958,32.58855885,239.67,239.58,32.58855885]
[1731936044488,32.58855885,239.65,239.59,0.09367462]
[1731936045176,32.58855885,239.65,239.58,32.58855885]
[1731936045380,32.58855885,239.65,239.59,4.42468]
[1731936045768,70.0,239.74,239.57,4.1741]
[1731936045769,32.58855885,239.63,239.57,4.1741]
[1731936045965,32.58855885,239.59,239.48,12.3321]
[1731936046291,32.58855885,239.64,239.46,32.58855885]
[1731936046292,32.58855885,239.56,239.46,32.58855885]
[1731936046593,32.58855885,239.56,239.47,0.09367462]
[1731936046967,32.58855885,239.56,239.49,0.09367462]
[1731936047289,32.58855885,239.56,239.5,4.30079]
[1731936047493,32.58855885,239.58,239.5,4.1753]
[1731936047673,32.58855885,239.52,239.43,4.1765]
[1731936047877,32.58855885,239.5,239.43,4.1765]
[1731936048088,32.58855885,239.56,239.47,32.58855885]
[1731936048285,32.58855885,239.54,239.47,32.58855885]
[1731936048588,31.9625,239.65,239.47,32.58855885]
[1731936048589,32.58855885,239.6,239.52,0.09367462]
[1731936048800,32.58855885,239.62,239.54,0.09367462]
[1731936048962,32.58855885,239.64,239.56,0.09367462]
[1731936049165,32.58855885,239.64,239.56,0.21916462]
[1731936049367,70.0,239.72,239.56,0.21916462]
[1731936049368,32.58855885,239.66,239.59,0.12549]
[1731936049805,32.58855885,239.66,239.61,0.12549]
[1731936049967,32.58855885,239.66,239.61,0.25098]
[1731936050173,32.58855885,239.68,239.62,0.34465462]
[1731936050370,32.58855885,239.7,239.62,24.12153862]
[1731936051085,32.58855885,239.7,239.64,24.12153862]
[1731936051398,32.58855885,239.72,239.66,24.027864]
[1731936052488,32.58855885,239.7,239.66,24.027864]
[1731936053001,32.58855885,239.7,239.66,28.200264]
[1731936053582,32.58855885,239.72,239.66,28.200264]
[1731936053900,32.58855885,239.74,239.67,32.68223347]
[1731936054090,32.58855885,239.76,239.7,24.027864]
[1731936054579,32.58855885,239.76,239.72,24.027864]
[1731936054777,32.58855885,239.76,239.72,23.902374]
[1731936054997,32.58855885,239.76,239.72,0.12549]
[1731936055296,32.58855885,239.76,239.7,23.776884]
[1731936055297,32.58855885,239.74,239.71,0.25098]
[1731936055892,32.58855885,239.76,239.71,0.25098]
[1731936056689,32.58855885,239.78,239.73,0.25098]
[1731936056890,32.58855885,239.82,239.74,23.87055862]
[1731936057101,32.58855885,239.8,239.75,0.25098]
[1731936057800,32.58855885,239.82,239.75,0.25098]
[1731936058481,20.04933701,239.81,239.77,24.027864]
[1731936058682,20.04933701,239.81,239.78,0.09367462]
[1731936058884,20.04933701,239.86,239.78,0.09367462]
[1731936059100,20.04933701,239.86,239.8,24.12153862]
[1731936059598,20.14933701,240.0,239.8,24.12153862]
[1731936059599,20.04933701,239.88,239.82,0.09367462]
[1731936059807,20.04933701,239.9,239.82,24.12153862]
[1731936060280,24.21813701,239.88,239.83,0.25098]
[1731936060599,20.04933701,239.86,239.83,0.25098]
[1731936060996,20.04933701,239.84,239.72,20.0]
[1731936061195,20.04933701,239.75,239.68,4.1721]
[1731936061703,20.04933701,239.79,239.72,20.04933701]
[1731936062102,20.04933701,239.77,239.68,24.22143701]
[1731936062395,20.04933701,239.79,239.7,20.04933701]
[1731936062707,20.04933701,239.77,239.7,20.04933701]
[1731936063278,20.04933701,239.77,239.66,4.1725]
[1731936063279,20.04933701,239.75,239.66,24.22183701]
[1731936063600,20.04933701,239.73,239.66,4.1725]
[1731936063904,20.04933701,239.75,239.67,0.09367462]
[1731936064211,20.04933701,239.75,239.66,24.22183701]
[1731936064376,20.04933701,239.75,239.68,20.04933701]
[1731936064572,20.04933701,239.75,239.69,23.99604862]
[1731936064777,20.04933701,239.75,239.69,24.12153862]
[1731936064976,20.04933701,239.75,239.61,33.0417]
[1731936064977,20.04933701,239.73,239.66,20.04933701]
[1731936065203,20.04933701,239.73,239.59,12.4504]
[1731936065204,20.04933701,239.67,239.62,4.1732]
[1731936065393,20.04933701,239.63,239.56,20.04933701]
[1731936066198,20.04933701,239.63,239.57,0.09367462]
[1731936066497,20.04933701,239.63,239.57,4.1741]
[1731936066704,20.04933701,239.65,239.58,24.027864]
[1731936066914,20.04933701,239.63,239.54,20.04933701]
[1731936067098,20.04933701,239.59,239.5,24.22453701]
[1731936067717,20.04933701,239.63,239.55,0.09367462]
[1731936068001,20.04933701,239.61,239.54,20.04933701]
[1731936068304,20.04933701,239.61,239.52,20.04933701]
[1731936068516,24.22313701,239.59,239.5,20.04933701]
[1731936068807,24.22313701,239.59,239.52,20.04933701]
[1731936069311,24.22313701,239.59,239.5,24.22463701]
[1731936069483,20.04933701,239.61,239.52,20.04933701]
[1731936069682,20.04933701,239.61,239.45,31.4328]
[1731936069683,20.04933701,239.53,239.45,31.4328]
[1731936069879,20.04933701,239.53,239.45,55.65823701]
[1731936070102,20.04933701,239.55,239.47,20.04933701]
[1731936070293,20.04933701,239.5,239.42,20.04933701]
[1731936070495,20.04933701,239.5,239.39,0.4773691]
[1731936070496,4.175,239.52,239.47,20.04933701]
[1731936070697,4.1743,239.57,239.51,20.04933701]
[1731936070880,20.04933701,239.56,239.49,20.04933701]
[1731936071314,20.04933701,239.56,239.47,20.04933701]
[1731936071603,20.04933701,239.56,239.49,20.04933701]
[1731936071983,4.1744,239.55,239.49,20.04933701]
[1731936072401,4.1744,239.55,239.5,23.902374]
[1731936072904,4.1744,239.55,239.48,0.25098]
[1731936073113,20.04933701,239.54,239.45,20.04933701]
[1731936073795,20.04933701,239.54,239.46,0.09367462]
[1731936074005,70.0,239.58,239.49,20.04933701]
[1731936074006,20.04933701,239.58,239.49,20.04933701]
[1731936074207,4.1741,239.57,239.49,20.04933701]
[1731936074509,32.4071,239.68,239.57,0.09367462]
[1731936074808,20.04933701,239.7,239.63,23.902374]
[1731936075111,20.04933701,239.68,239.65,23.776884]
[1731936075314,20.04933701,239.66,239.59,24.027864]
[1731936075488,20.04933701,239.64,239.59,23.776884]
[1731936075683,20.04933701,239.64,239.6,0.12549]
[1731936076107,20.04933701,239.62,239.57,23.776884]
[1731936076308,102.64695748,239.59,239.47,32.64695748]
[1731936076507,32.64695748,239.61,239.54,32.64695748]
[1731936076706,4.1731,239.63,239.52,32.64695748]
[1731936076707,32.64695748,239.59,239.52,32.64695748]
[1731936077090,32.64695748,239.59,239.5,32.64695748]
[1731936077507,4.1739,239.58,239.5,32.64695748]
[1731936077714,36.82075748,239.59,239.5,32.64695748]
[1731936078027,36.82075748,239.59,239.52,32.77244748]
[1731936078222,36.82075748,239.59,239.53,23.776884]
[1731936078511,32.64695748,239.61,239.53,23.776884]
[1731936078689,32.64695748,239.61,239.55,23.776884]
[1731936078899,36.82005748,239.63,239.56,0.12549]
[1731936079098,36.82005748,239.63,239.57,23.776884]
[1731936079299,4.1728,239.65,239.58,32.77244748]
[1731936079513,36.81935748,239.67,239.6,32.89793748]
[1731936079695,32.64695748,239.69,239.63,23.776884]
[1731936080012,32.64695748,239.67,239.6,0.25098]
[1731936080517,32.64695748,239.67,239.62,0.12549]
[1731936080696,32.64695748,239.67,239.61,23.776884]
[1731936081014,32.64695748,239.63,239.59,23.776884]
[1731936081207,32.64695748,239.61,239.56,0.12549]
[1731936081414,32.64695748,239.65,239.58,32.77244748]
[1731936081617,36.81985748,239.65,239.6,0.12549]
[1731936081911,36.81985748,239.65,239.29,33.36670395]
[1731936081912,32.64695748,239.61,239.52,32.64695748]
[1731936083118,32.64695748,239.59,239.52,32.64695748]
[1731936083415,32.64695748,239.61,239.53,0.25098]
[1731936083620,4.1736,239.6,239.53,0.25098]
[1731936083913,4.1733,239.62,239.55,24.027864]
[1731936084115,4.1733,239.62,239.56,32.64695748]
[1731936085219,32.64695748,239.59,239.52,32.64695748]
[1731936085400,4.1733,239.62,239.46,4.176]
[1731936085401,32.64695748,239.55,239.48,32.64695748]
[1731936085595,32.64695748,239.55,239.46,36.82295748]
[1731936086001,70.1,239.61,239.46,36.82295748]
[1731936086002,32.64695748,239.58,239.51,0.09367462]
[1731936086210,32.64695748,239.6,239.52,32.64695748]
[1731936086399,32.64695748,239.58,239.48,32.64695748]
[1731936086610,32.64695748,239.58,239.49,0.25098]
[1731936086809,32.64695748,239.56,239.49,0.12549]
[1731936087012,32.64695748,239.56,239.48,32.64695748]
[1731936087402,32.64695748,239.58,239.5,32.64695748]
[1731936088022,32.64695748,239.6,239.5,32.64695748]
[1731936088335,32.64695748,239.6,239.51,0.25098]
[1731936088619,32.64695748,239.58,239.51,0.12549]
[1731936088852,30.0,239.54,239.5,0.12549]
[1731936089013,30.0,239.54,239.5,32.77244748]
[1731936089216,30.0,239.54,239.43,4.1765]
[1731936089403,30.0,239.54,239.44,32.64695748]
[1731936089404,62.64695748,239.54,239.44,32.64695748]
[1731936089593,62.64695748,239.54,239.46,32.64695748]
[1731936089798,30.0,239.54,239.48,32.64695748]
[1731936090102,30.0,239.54,239.5,32.64695748]
[1731936091116,30.0,239.54,239.53,32.64695748]
[1731936091318,30.0,239.54,239.53,32.77244748]
[1731936091925,30.0,239.54,239.53,32.89793748]
[1731936092428,30.0,239.54,239.51,0.12549]
[1731936092597,30.0,239.54,239.5,4.30079]
[1731936093003,30.0,239.54,239.5,0.12549]
[1731936093316,36.82175748,239.53,239.43,32.64695748]
[1731936093507,30.0,239.52,239.47,32.64695748]
[1731936094605,30.0,239.52,239.48,0.12549]
[1731936095028,30.0,239.52,239.48,24.027864]
[1731936095333,30.0,239.52,239.51,56.7684961]
[1731936095712,32.64695748,239.65,239.53,0.09367462]
[1731936095910,36.81935748,239.67,239.59,32.64695748]
[1731936096115,32.64695748,239.63,239.55,32.64695748]
[1731936096314,20.08159803,239.63,239.56,0.12549]
[1731936096730,20.08159803,239.63,239.56,28.202064]
[1731936098732,20.08159803,239.65,239.58,0.12549]
[1731936098927,4.172,239.69,239.58,0.12549]
[1731936099125,4.172,239.69,239.36,4.1777]
[1731936099126,70.0,239.51,239.36,4.1777]
[1731936099426,20.08159803,239.4,239.29,20.08159803]
[1731936099619,20.08159803,239.4,239.38,3.56556785]
[1731936099932,20.08159803,239.42,239.31,20.08159803]
[1731936100233,32.68670582,239.43,239.33,32.68670582]
[1731936100428,32.68670582,239.45,239.35,32.68670582]
[1731936101432,32.68670582,239.45,239.36,20.0]
[1731936102203,32.68670582,239.52,239.3,0.1]
[1731936102204,32.68670582,239.43,239.4,0.12549]
[1731936102407,32.68670582,239.43,239.33,32.68670582]
[1731936102631,32.68670582,239.47,239.4,0.09367462]
[1731936103727,32.68670582,239.47,239.4,24.12153862]
[1731936104239,32.68670582,239.5,239.4,24.12153862]
[1731936104619,32.68670582,239.56,239.48,0.34465462]
[1731936104838,32.68670582,239.58,239.5,0.34465462]
[1731936105012,32.68670582,239.6,239.52,0.34465462]
[1731936105414,32.68670582,239.62,239.54,0.34465462]
[1731936105628,32.68670582,239.66,239.57,32.68670582]
[1731936105837,32.68670582,239.66,239.58,0.25098]
[1731936106414,32.68670582,239.66,239.59,0.21916462]
[1731936106739,32.68670582,239.66,239.6,0.25098]
[1731936106913,32.68670582,239.66,239.6,0.12549]
[1731936107334,32.68670582,239.66,239.59,0.09367462]
[1731936107530,32.68670582,239.66,239.6,0.12549]
[1731936108236,4.1719,239.7,239.62,0.25098]
[1731936108237,32.68670582,239.7,239.62,0.25098]
[1731936108618,32.68670582,239.68,239.62,0.25098]
[1731936109234,32.68670582,239.64,239.58,0.12549]
[1731936109433,32.68670582,239.64,239.58,0.25098]
[1731936109631,32.68670582,239.64,239.59,0.21916462]
[1731936109823,32.68670582,239.64,239.6,0.12549]
[1731936110023,32.68670582,239.67,239.61,0.09367462]
[1731936110311,32.68670582,239.67,239.62,0.12549]
[1731936110514,32.68670582,239.69,239.62,0.12549]
[1731936110927,32.68670582,239.69,239.63,0.09367462]
[1731936111241,32.68670582,239.69,239.62,0.25098]
[1731936111242,32.68670582,239.67,239.62,0.12549]
[1731936111623,32.68670582,239.67,239.61,0.21916462]
[1731936111821,32.68670582,239.67,239.62,0.12549]
[1731936112018,32.68670582,239.7,239.62,0.12549]
[1731936112419,32.68670582,239.68,239.62,0.12549]
[1731936114918,32.68670582,239.63,239.54,32.68670582]
[1731936116034,32.68670582,239.63,239.55,0.09367462]
[1731936116233,36.85910582,239.67,239.59,0.25098]
[1731936116446,32.68670582,239.67,239.6,0.09367462]
[1731936116642,32.68670582,239.67,239.61,0.25098]
[1731936117146,10.4255,239.8,239.67,0.21916462]
[1731936117327,4.1706,239.78,239.69,0.25098]
[1731936117722,36.85730582,239.78,239.69,0.25098]
[1731936118122,36.85690582,239.8,239.73,0.09367462]
[1731936118348,32.68670582,239.8,239.73,0.34465462]
[1731936118642,32.68670582,239.84,239.75,0.34465462]
[1731936118824,32.68670582,239.86,239.79,0.25098]
[1731936119025,32.68670582,239.84,239.79,0.12549]
[1731936119422,32.68670582,239.84,239.77,0.25098]
[1731936120028,32.68670582,239.84,239.77,0.12549]
[1731936120251,36.85620582,239.84,239.77,0.09367462]
[1731936120433,36.85620582,239.84,239.78,0.25098]
[1731936120738,32.68670582,239.8,239.7,32.68670582]
[1731936120952,32.68670582,239.74,239.66,45.87690582]
[1731936121134,32.68670582,239.74,239.66,13.1902]
[1731936121321,32.68670582,239.72,239.66,13.1902]
[1731936121525,32.68670582,239.74,239.64,32.68670582]
[1731936121944,32.68670582,239.72,239.64,32.68670582]
[1731936122143,4.1715,239.73,239.64,32.68670582]
[1731936122330,4.1715,239.73,239.66,32.68670582]
[1731936122839,4.1715,239.73,239.65,0.09367462]
[1731936123043,32.68670582,239.72,239.65,0.09367462]
[1731936123336,4.1715,239.73,239.66,32.68670582]
[1731936123552,4.1715,239.73,239.67,0.25098]
[1731936124050,32.68670582,239.72,239.64,32.68670582]
[1731936124239,32.68670582,239.7,239.62,32.68670582]
[1731936124547,32.68670582,239.7,239.6,32.68670582]
[1731936125247,102.68670582,239.68,239.58,32.68670582]
[1731936125418,32.68670582,239.6,239.51,32.68670582]
[1731936125623,32.68670582,239.58,239.49,44.82840582]
[1731936126550,32.68670582,239.56,239.47,32.68670582]
[1731936126750,32.68670582,239.54,239.46,0.09367462]
[1731936127248,32.68670582,239.54,239.45,32.68670582]
[1731936127433,32.68670582,239.56,239.47,32.68670582]
[1731936127752,36.86110582,239.56,239.48,0.25098]
[1731936128125,32.68670582,239.54,239.39,0.4773691]
[1731936128326,32.68670582,239.46,239.39,0.4773691]
[1731936128546,70.1,239.5,239.39,0.4773691]
[1731936128547,32.68670582,239.44,239.39,0.4773691]
[1731936128939,32.68670582,239.4,239.39,0.4773691]
[1731936129747,36.86380582,239.4,239.39,0.4773691]
[1731936130229,106.86380582,239.4,239.39,0.4773691]
[1731936130426,106.96380582,239.4,239.39,0.4773691]
[1731936130747,4.1751,239.51,239.39,0.4773691]
[1731936130937,4.1748,239.53,239.43,32.68670582]
[1731936131441,0.1,239.57,239.4,0.09367462]
[1731936131442,36.86030582,239.6,239.5,32.68670582]
[1731936131627,36.86030582,239.6,239.52,32.68670582]
[1731936131628,32.68670582,239.6,239.52,32.68670582]
[1731936131832,32.68670582,239.66,239.57,0.12549]
[1731936132143,32.68670582,239.62,239.52,32.68670582]
[1731936132452,0.1,239.66,239.53,0.25098]
[1731936132453,32.68670582,239.6,239.53,0.25098]
[1731936132661,70.0,239.66,239.53,0.25098]
[1731936132662,32.68670582,239.62,239.55,0.12549]
[1731936132949,32.68670582,239.64,239.55,0.12549]
[1731936133150,32.68670582,239.64,239.56,32.68670582]
[1731936133349,32.68670582,239.64,239.57,0.12549]
[1731936134056,32.68670582,239.66,239.59,0.12549]
[1731936134558,12.5362,239.7,239.62,32.68670582]
[1731936134559,32.68670582,239.7,239.62,32.68670582]
[1731936134857,32.68670582,239.63,239.49,32.68670582]
[1731936135034,32.68670582,239.58,239.5,0.09367462]
[1731936135233,70.0,239.65,239.52,0.09367462]
[1731936135234,32.68670582,239.6,239.52,0.09367462]
[1731936135641,32.68670582,239.62,239.53,32.68670582]
[1731936135849,32.68670582,239.6,239.54,0.12549]
[1731936136050,32.68670582,239.6,239.54,0.25098]
[1731936137458,32.68670582,239.6,239.52,0.34465462]
[1731936137845,32.68670582,239.6,239.52,20.34465462]
[1731936138164,32.68670582,239.62,239.55,0.12549]
[1731936138457,32.68670582,239.62,239.54,0.25098]
[1731936138642,32.68670582,239.62,239.55,0.34465462]
[1731936139038,32.68670582,239.62,239.55,0.12549]
[1731936139347,32.68670582,239.62,239.45,45.72150582]
[1731936139348,32.68670582,239.56,239.45,45.72150582]
[1731936139546,32.68670582,239.54,239.45,45.72150582]
[1731936140260,32.68670582,239.56,239.48,0.09367462]
[1731936140751,32.68670582,239.6,239.52,0.09367462]
[1731936140951,32.68670582,239.6,239.52,0.34465462]
[1731936142035,32.68670582,239.58,239.52,0.12549]
[1731936142358,32.68670582,239.54,239.45,45.72150582]
[1731936142665,0.2,239.63,239.39,0.4773691]
[1731936142666,32.68670582,239.46,239.39,0.4773691]
[1731936142959,70.0,239.6,239.42,32.68670582]
[1731936143158,70.0,239.69,239.5,0.09367462]
[1731936143456,12.7556,239.72,239.53,0.09367462]
[1731936143660,33.1942,239.75,239.53,0.09367462]
[1731936143661,70.0,239.73,239.53,0.09367462]
[1731936143853,74.1714,239.73,239.53,0.09367462]
[1731936144160,4.1714,239.73,239.55,0.34465462]
[1731936144456,32.68670582,239.7,239.63,0.25098]